[Event "*** Titled Tuesday Blitz"]
[Site "Chess.com"]
[Date "2020.05.05"]
[Round "9"]
[White "Parhamov"]
[Black "lachesisQ"]
[Result "1-0"]
[WhiteElo "3035"]
[BlackElo "3089"]
[TimeControl "180+1"]
[EndTime "11:51:39 PDT"]
[Termination "Parhamov won on time"]

1. e4 {[%clk 0:03:00.9]} 1... c5 {[%clk 0:02:57.8]} 2. Nf3 {[%clk 0:03:00.8]}
2... d6 {[%clk 0:02:58.2]} 3. d4 {[%clk 0:03:00.9]} 3... cxd4 {[%clk 0:02:59.1]}
4. Nxd4 {[%clk 0:03:01.8]} 4... Nf6 {[%clk 0:02:59.7]} 5. Nc3 {[%clk 0:03:01.9]}
5... a6 {[%clk 0:03:00.4]} 6. f3 {[%clk 0:03:01.7]} 6... e5 {[%clk 0:02:59.4]}
7. Nb3 {[%clk 0:03:01]} 7... Be6 {[%clk 0:02:59.9]} 8. Be3 {[%clk 0:03:00.6]}
8... Nc6 {[%clk 0:03:00.2]} 9. Qd2 {[%clk 0:03:00.4]} 9... d5 {[%clk 0:03:00.3]}
10. exd5 {[%clk 0:02:16.9]} 10... Nxd5 {[%clk 0:03:01.2]} 11. Nxd5 {[%clk
0:02:17]} 11... Qxd5 {[%clk 0:03:00.9]} 12. Qxd5 {[%clk 0:02:15.5]} 12... Bxd5
{[%clk 0:03:01.8]} 13. O-O-O {[%clk 0:02:15.9]} 13... O-O-O {[%clk 0:03:01.8]}
14. a3 {[%clk 0:02:16.3]} 14... Be7 {[%clk 0:02:59.6]} 15. Bd3 {[%clk
0:02:16.1]} 15... g6 {[%clk 0:02:55.7]} 16. h4 {[%clk 0:02:16.2]} 16... h5
{[%clk 0:02:53.7]} 17. Bb6 {[%clk 0:02:15.3]} 17... Rd7 {[%clk 0:02:50.9]} 18.
Nc5 {[%clk 0:02:15.3]} 18... Bxc5 {[%clk 0:02:46.3]} 19. Bxc5 {[%clk 0:02:15.4]}
19... Kc7 {[%clk 0:02:46.4]} 20. Bf2 {[%clk 0:02:13.7]} 20... Be6 {[%clk
0:02:41.7]} 21. Rhe1 {[%clk 0:02:13.7]} 21... Bf5 {[%clk 0:02:41.4]} 22. Bc4
{[%clk 0:02:09.2]} 22... Rhd8 {[%clk 0:02:38.5]} 23. b4 {[%clk 0:02:05]} 23...
f6 {[%clk 0:02:36.6]} 24. Rxd7+ {[%clk 0:02:01.4]} 24... Rxd7 {[%clk 0:02:36.5]}
25. Rd1 {[%clk 0:02:01.7]} 25... Rxd1+ {[%clk 0:02:07]} 26. Kxd1 {[%clk
0:02:02.6]} 26... Nd4 {[%clk 0:02:07.4]} 27. Bxd4 {[%clk 0:01:58.8]} 27... exd4
{[%clk 0:02:08.3]} 28. Kd2 {[%clk 0:01:59.3]} 28... Kd6 {[%clk 0:02:03.7]} 29.
f4 {[%clk 0:01:57.3]} 29... Be6 {[%clk 0:01:47]} 30. Kd3 {[%clk 0:01:52.2]}
30... Bf5+ {[%clk 0:01:46.9]} 31. Kxd4 {[%clk 0:01:52.5]} 31... Bxc2 {[%clk
0:01:46.9]} 32. Bd5 {[%clk 0:01:49.6]} 32... b6 {[%clk 0:01:45.8]} 33. Be4
{[%clk 0:01:12.6]} 33... Bxe4 {[%clk 0:01:44.5]} 34. Kxe4 {[%clk 0:01:13]} 34...
f5+ {[%clk 0:01:34.5]} 35. Kd4 {[%clk 0:01:12.2]} 35... Ke6 {[%clk 0:01:34.6]}
36. a4 {[%clk 0:00:58]} 36... Kd6 {[%clk 0:01:34]} 37. Kc4 {[%clk 0:00:30.6]}
37... Ke6 {[%clk 0:01:32.3]} 38. a5 {[%clk 0:00:29.1]} 38... bxa5 {[%clk
0:01:31.3]} 39. bxa5 {[%clk 0:00:29.4]} 39... Kd6 {[%clk 0:01:31.8]} 40. Kd4
{[%clk 0:00:29.7]} 40... Kc6 {[%clk 0:01:32.3]} 41. Kc4 {[%clk 0:00:14.7]} 41...
Kd6 {[%clk 0:01:32.4]} 42. Kd4 {[%clk 0:00:15.1]} 42... Kc6 {[%clk 0:01:32.6]}
43. Ke5 {[%clk 0:00:08.1]} 43... Kb5 {[%clk 0:01:32.8]} 44. Kf6 {[%clk
0:00:08.5]} 44... Kxa5 {[%clk 0:01:33.3]} 45. Kxg6 {[%clk 0:00:08.9]} 45... Kb6
{[%clk 0:01:24.7]} 46. Kxf5 {[%clk 0:00:07.1]} 46... a5 {[%clk 0:01:21.1]} 47.
Kg6 {[%clk 0:00:05.6]} 47... a4 {[%clk 0:01:18.9]} 48. f5 {[%clk 0:00:06]} 48...
a3 {[%clk 0:01:18.9]} 49. f6 {[%clk 0:00:06.4]} 49... a2 {[%clk 0:01:19.4]} 50.
f7 {[%clk 0:00:06.9]} 50... a1=Q {[%clk 0:01:17.2]} 51. f8=Q {[%clk 0:00:07.2]}
51... Qd1 {[%clk 0:01:08.2]} 52. Qf5 {[%clk 0:00:03.9]} 52... Qe2 {[%clk
0:01:00.7]} 53. Qf3 {[%clk 0:00:03]} 53... Qb5 {[%clk 0:00:53.4]} 54. Qf6+
{[%clk 0:00:02]} 54... Ka7 {[%clk 0:00:52.1]} 55. Qf7+ {[%clk 0:00:02.9]} 55...
Kb8 {[%clk 0:00:50.9]} 56. Qf5 {[%clk 0:00:03.4]} 56... Qe2 {[%clk 0:00:48]} 57.
g3 {[%clk 0:00:03]} 57... Qd1 {[%clk 0:00:43]} 58. Kg5 {[%clk 0:00:03]} 58...
Ka8 {[%clk 0:00:32.5]} 59. Qf8+ {[%clk 0:00:03.1]} 59... Ka7 {[%clk 0:00:32.5]}
60. Qf7+ {[%clk 0:00:04]} 60... Ka8 {[%clk 0:00:31.3]} 61. Qf4 {[%clk
0:00:04.9]} 61... Qd5+ {[%clk 0:00:27.8]} 62. Kh6 {[%clk 0:00:05.1]} 62... Qd1
{[%clk 0:00:27.6]} 63. Qg5 {[%clk 0:00:06]} 63... Qf3 {[%clk 0:00:22.6]} 64.
Qg8+ {[%clk 0:00:05.2]} 64... Ka7 {[%clk 0:00:22.5]} 65. Qg7+ {[%clk 0:00:05.9]}
65... Ka8 {[%clk 0:00:22.6]} 66. Qg6 {[%clk 0:00:06.8]} 66... Ka7 {[%clk
0:00:21.3]} 67. Qg5 {[%clk 0:00:07.1]} 67... Ka8 {[%clk 0:00:20.9]} 68. Qf4
{[%clk 0:00:06.8]} 68... Qd1 {[%clk 0:00:20]} 69. Qf8+ {[%clk 0:00:06.7]} 69...
Ka7 {[%clk 0:00:19.9]} 70. Qf7+ {[%clk 0:00:07.1]} 70... Ka8 {[%clk 0:00:19.6]}
71. Qxh5 {[%clk 0:00:07.2]} 71... Qd6+ {[%clk 0:00:18.4]} 72. Qg6 {[%clk
0:00:07.4]} 72... Qf8+ {[%clk 0:00:18.8]} 73. Kh7 {[%clk 0:00:06.9]} 73... Qe7+
{[%clk 0:00:18.5]} 74. Kh6 {[%clk 0:00:07]} 74... Qe3+ {[%clk 0:00:17.8]} 75.
Kh5 {[%clk 0:00:06.5]} 75... Qe2+ {[%clk 0:00:16.7]} 76. g4 {[%clk 0:00:06]}
76... Qe5+ {[%clk 0:00:17]} 77. Kh6 {[%clk 0:00:06.2]} 77... Qh8+ {[%clk
0:00:16]} 78. Kg5 {[%clk 0:00:06.2]} 78... Qe5+ {[%clk 0:00:16]} 79. Qf5 {[%clk
0:00:06.6]} 79... Qg7+ {[%clk 0:00:16.2]} 80. Kh5 {[%clk 0:00:06.8]} 80... Qh8+
{[%clk 0:00:16.2]} 81. Kg6 {[%clk 0:00:07.3]} 81... Qxh4 {[%clk 0:00:15.3]} 82.
Qd5+ {[%clk 0:00:05.2]} 82... Ka7 {[%clk 0:00:14.7]} 83. g5 {[%clk 0:00:05.4]}
83... Qh2 {[%clk 0:00:13.2]} 84. Qf7+ {[%clk 0:00:05.2]} 84... Ka6 {[%clk
0:00:12.6]} 85. Kg7 {[%clk 0:00:05.5]} 85... Ka5 {[%clk 0:00:11.7]} 86. g6
{[%clk 0:00:05.6]} 86... Ka4 {[%clk 0:00:12.3]} 87. Qd7+ {[%clk 0:00:04.4]}
87... Ka3 {[%clk 0:00:12.1]} 88. Qe7+ {[%clk 0:00:04.6]} 88... Ka2 {[%clk
0:00:12.2]} 89. Qe6+ {[%clk 0:00:04.3]} 89... Ka1 {[%clk 0:00:11.9]} 90. Kf7
{[%clk 0:00:04.2]} 90... Qc7+ {[%clk 0:00:11.3]} 91. Qe7 {[%clk 0:00:04.5]}
91... Qc4+ {[%clk 0:00:11.4]} 92. Kg7 {[%clk 0:00:04.9]} 92... Qd5 {[%clk
0:00:05.9]} 93. Qf6+ {[%clk 0:00:05.8]} 93... Kb1 {[%clk 0:00:05.5]} 94. Kh8
{[%clk 0:00:05.4]} 94... Qh5+ {[%clk 0:00:05.4]} 95. Kg8 {[%clk 0:00:05.7]}
95... Qd5+ {[%clk 0:00:06]} 96. Qf7 {[%clk 0:00:06.1]} 96... Qd8+ {[%clk
0:00:06.6]} 97. Kh7 {[%clk 0:00:06.3]} 97... Qh4+ {[%clk 0:00:07]} 98. Kg7
{[%clk 0:00:06.7]} 98... Qd4+ {[%clk 0:00:07.3]} 99. Qf6 {[%clk 0:00:07]} 99...
Qd7+ {[%clk 0:00:07.9]} 100. Kf8 {[%clk 0:00:07.3]} 100... Qc8+ {[%clk
0:00:08.3]} 101. Kf7 {[%clk 0:00:07.6]} 101... Qd7+ {[%clk 0:00:08.7]} 102. Qe7
{[%clk 0:00:07.8]} 102... Qf5+ {[%clk 0:00:09.1]} 103. Kg7 {[%clk 0:00:07.9]}
103... Qd5 {[%clk 0:00:09.7]} 104. Qe1+ {[%clk 0:00:07.6]} 104... Kb2 {[%clk
0:00:09.2]} 105. Qf2+ {[%clk 0:00:08]} 105... Kb1 {[%clk 0:00:09.7]} 106. Kh6
{[%clk 0:00:05.7]} 106... Qh1+ {[%clk 0:00:09.4]} 107. Kg5 {[%clk 0:00:05.9]}
107... Qh8 {[%clk 0:00:08.5]} 108. Qf5+ {[%clk 0:00:05.2]} 108... Kc1 {[%clk
0:00:08.1]} 109. Qf6 {[%clk 0:00:04.6]} 109... Qh2 {[%clk 0:00:06]} 110. g7
{[%clk 0:00:04.6]} 110... Qg3+ {[%clk 0:00:06.3]} 111. Kh6 {[%clk 0:00:04.6]}
111... Qh3+ {[%clk 0:00:06.5]} 112. Kg6 {[%clk 0:00:05.1]} 112... Qg4+ {[%clk
0:00:06.8]} 113. Qg5+ {[%clk 0:00:05.1]} 1-0

[Event "*** Titled Tuesday Blitz"]
[Site "Chess.com"]
[Date "2020.05.05"]
[Round "10"]
[White "gmelviro"]
[Black "cukin84"]
[Result "0-1"]
[WhiteElo "2252"]
[BlackElo "2093"]
[TimeControl "180+1"]
[EndTime "11:53:32 PDT"]
[Termination "cukin84 won by resignation"]

1. c4 {[%clk 0:03:00.9]} 1... f5 {[%clk 0:02:59.1]} 2. g3 {[%clk 0:03:00.2]}
2... Nf6 {[%clk 0:02:59.2]} 3. Bg2 {[%clk 0:03:01.1]} 3... g6 {[%clk 0:02:59.2]}
4. Nc3 {[%clk 0:03:02]} 4... Bg7 {[%clk 0:02:59.5]} 5. d3 {[%clk 0:03:02.6]}
5... O-O {[%clk 0:02:59.2]} 6. e3 {[%clk 0:02:58.7]} 6... e5 {[%clk 0:02:59]} 7.
Nge2 {[%clk 0:02:58.2]} 7... d6 {[%clk 0:02:59.1]} 8. O-O {[%clk 0:02:55.8]}
8... c6 {[%clk 0:02:59.3]} 9. b3 {[%clk 0:02:54.7]} 9... Nh5 {[%clk 0:02:57.6]}
10. Ba3 {[%clk 0:02:53.6]} 10... f4 {[%clk 0:02:54.3]} 11. exf4 {[%clk
0:02:53.6]} 11... exf4 {[%clk 0:02:54.1]} 12. f3 {[%clk 0:02:38.3]} 12... fxg3
{[%clk 0:02:49.3]} 13. hxg3 {[%clk 0:02:38]} 13... Nxg3 {[%clk 0:02:43.8]} 14.
Nxg3 {[%clk 0:02:31.7]} 14... Bxc3 {[%clk 0:02:43.5]} 15. Ne4 {[%clk 0:02:30.1]}
15... Bd4+ {[%clk 0:02:42.8]} 0-1

[Event "*** Titled Tuesday Blitz"]
[Site "Chess.com"]
[Date "2020.05.05"]
[Round "10"]
[White "CrushingKings"]
[Black "pandamaster3000"]
[Result "1-0"]
[WhiteElo "2464"]
[BlackElo "2313"]
[TimeControl "180+1"]
[EndTime "11:53:36 PDT"]
[Termination "CrushingKings won by resignation"]

1. e4 {[%clk 0:03:00.9]} 1... c5 {[%clk 0:02:58.7]} 2. d4 {[%clk 0:03:00.5]}
2... cxd4 {[%clk 0:02:56.2]} 3. c3 {[%clk 0:03:00.8]} 3... d3 {[%clk 0:02:55.4]}
4. Bxd3 {[%clk 0:03:00.4]} 4... Nc6 {[%clk 0:02:55.1]} 5. c4 {[%clk 0:03:00.7]}
5... g6 {[%clk 0:02:55.4]} 6. Nf3 {[%clk 0:03:01.1]} 6... Bg7 {[%clk 0:02:55.9]}
7. h3 {[%clk 0:03:01.2]} 7... d6 {[%clk 0:02:56.3]} 8. O-O {[%clk 0:03:01.7]}
8... Nf6 {[%clk 0:02:56.7]} 9. Nc3 {[%clk 0:03:02]} 9... O-O {[%clk 0:02:57.3]}
10. Be3 {[%clk 0:03:02.5]} 10... b6 {[%clk 0:02:52.3]} 11. Rc1 {[%clk
0:03:02.6]} 11... Bb7 {[%clk 0:02:52.5]} 12. b3 {[%clk 0:03:03.2]} 12... Nd7
{[%clk 0:02:51]} 13. Qe2 {[%clk 0:03:03.2]} 13... Nc5 {[%clk 0:02:49.7]} 14. Bb1
{[%clk 0:03:03]} 14... Rc8 {[%clk 0:02:43.7]} 15. Rfd1 {[%clk 0:03:02.8]} 15...
Qc7 {[%clk 0:02:37.4]} 16. Nd5 {[%clk 0:02:58.5]} 16... Qb8 {[%clk 0:02:37.5]}
17. b4 {[%clk 0:02:55]} 17... Ne6 {[%clk 0:02:23.8]} 18. b5 {[%clk 0:02:54.8]}
1-0

[Event "*** Titled Tuesday Blitz"]
[Site "Chess.com"]
[Date "2020.05.05"]
[Round "10"]
[White "neurisdr"]
[Black "Arek_pacitan"]
[Result "1-0"]
[WhiteElo "2775"]
[BlackElo "2565"]
[TimeControl "180+1"]
[EndTime "11:54:25 PDT"]
[Termination "neurisdr won by resignation"]

1. e4 {[%clk 0:03:00.9]} 1... e6 {[%clk 0:02:58.6]} 2. d4 {[%clk 0:03:00.6]}
2... d5 {[%clk 0:02:58.6]} 3. Nd2 {[%clk 0:02:59.9]} 3... dxe4 {[%clk 0:02:56]}
4. Nxe4 {[%clk 0:02:59.2]} 4... Nf6 {[%clk 0:02:56.5]} 5. Nxf6+ {[%clk
0:02:58.7]} 5... gxf6 {[%clk 0:02:56.9]} 6. Nf3 {[%clk 0:02:58.7]} 6... b6
{[%clk 0:02:55.3]} 7. Bb5+ {[%clk 0:02:58]} 7... c6 {[%clk 0:02:55]} 8. Be2
{[%clk 0:02:57.8]} 8... Bb7 {[%clk 0:02:55.3]} 9. Be3 {[%clk 0:02:57.8]} 9...
Nd7 {[%clk 0:02:55.6]} 10. Qd2 {[%clk 0:02:57.7]} 10... c5 {[%clk 0:02:55.8]}
11. O-O-O {[%clk 0:02:56.3]} 11... Qc7 {[%clk 0:02:51.6]} 12. dxc5 {[%clk
0:02:55.7]} 12... Bxc5 {[%clk 0:02:44.7]} 13. Bf4 {[%clk 0:02:44.4]} 13... e5
{[%clk 0:02:45]} 14. Be3 {[%clk 0:02:40.9]} 14... O-O-O {[%clk 0:02:44.8]} 15.
Kb1 {[%clk 0:02:39.9]} 15... Kb8 {[%clk 0:02:43.7]} 16. Rhf1 {[%clk 0:02:33.8]}
16... f5 {[%clk 0:02:43.5]} 17. g3 {[%clk 0:02:27.7]} 17... e4 {[%clk
0:02:20.2]} 18. Bf4 {[%clk 0:02:24.4]} 18... exf3 {[%clk 0:02:07.6]} 19. Bxc7+
{[%clk 0:02:22.3]} 19... Kxc7 {[%clk 0:02:08.5]} 20. Qf4+ {[%clk 0:02:20.1]} 1-0

[Event "*** Titled Tuesday Blitz"]
[Site "Chess.com"]
[Date "2020.05.05"]
[Round "10"]
[White "tamarozi99"]
[Black "FMalexhdez"]
[Result "1-0"]
[WhiteElo "1992"]
[BlackElo "2098"]
[TimeControl "180+1"]
[EndTime "11:54:26 PDT"]
[Termination "tamarozi99 won by resignation"]

1. e4 {[%clk 0:03:00.9]} 1... c5 {[%clk 0:02:59.6]} 2. Nf3 {[%clk 0:03:00.1]}
2... d6 {[%clk 0:02:59.7]} 3. Bb5+ {[%clk 0:02:57.8]} 3... Bd7 {[%clk
0:02:58.4]} 4. Bxd7+ {[%clk 0:02:57.5]} 4... Qxd7 {[%clk 0:02:58.8]} 5. O-O
{[%clk 0:02:57.5]} 5... Nf6 {[%clk 0:02:58.5]} 6. Re1 {[%clk 0:02:56.9]} 6...
Nc6 {[%clk 0:02:57.9]} 7. c3 {[%clk 0:02:56.8]} 7... g6 {[%clk 0:02:57.4]} 8. d4
{[%clk 0:02:56.2]} 8... Bg7 {[%clk 0:02:56.7]} 9. e5 {[%clk 0:02:37.8]} 9...
cxd4 {[%clk 0:02:57.6]} 10. exf6 {[%clk 0:02:31.3]} 10... Bxf6 {[%clk
0:02:51.1]} 11. cxd4 {[%clk 0:02:30.2]} 11... O-O {[%clk 0:02:05.9]} 12. Nc3
{[%clk 0:02:25.5]} 12... a6 {[%clk 0:01:56.9]} 13. Nd5 {[%clk 0:02:18.3]} 13...
Bg7 {[%clk 0:01:55.6]} 14. Nb6 {[%clk 0:02:17.6]} 1-0

[Event "*** Titled Tuesday Blitz"]
[Site "Chess.com"]
[Date "2020.05.05"]
[Round "10"]
[White "InitiatingASC"]
[Black "NotFischer"]
[Result "0-1"]
[WhiteElo "2291"]
[BlackElo "2170"]
[TimeControl "180+1"]
[EndTime "11:55:09 PDT"]
[Termination "NotFischer won by resignation"]

1. Nf3 {[%clk 0:03:00.9]} 1... Nf6 {[%clk 0:02:58.8]} 2. g3 {[%clk 0:02:59.3]}
2... d5 {[%clk 0:02:59.2]} 3. Bg2 {[%clk 0:02:59.3]} 3... e6 {[%clk 0:02:59.8]}
4. O-O {[%clk 0:02:59.6]} 4... Be7 {[%clk 0:03:00.7]} 5. c4 {[%clk 0:02:59.7]}
5... O-O {[%clk 0:03:01.6]} 6. b3 {[%clk 0:03:00]} 6... c6 {[%clk 0:03:01.9]} 7.
Bb2 {[%clk 0:03:00.4]} 7... Nbd7 {[%clk 0:03:02.2]} 8. d3 {[%clk 0:03:00.8]}
8... b6 {[%clk 0:03:02.6]} 9. Nbd2 {[%clk 0:03:00.7]} 9... Bb7 {[%clk
0:03:02.9]} 10. e4 {[%clk 0:02:56.7]} 10... dxe4 {[%clk 0:02:53.4]} 11. dxe4
{[%clk 0:02:56.2]} 11... Nc5 {[%clk 0:02:53]} 12. Qe2 {[%clk 0:02:51.7]} 12...
Nd3 {[%clk 0:02:33.4]} 13. Bc3 {[%clk 0:02:47.2]} 13... Bb4 {[%clk 0:02:22]} 14.
Bxb4 {[%clk 0:02:40.7]} 14... Nxb4 {[%clk 0:02:21.9]} 15. Rfd1 {[%clk
0:02:40.7]} 15... Qe7 {[%clk 0:02:21]} 16. Nf1 {[%clk 0:02:37.2]} 16... c5
{[%clk 0:02:19.3]} 17. e5 {[%clk 0:02:29.2]} 17... Nd7 {[%clk 0:02:19.2]} 18.
N3d2 {[%clk 0:02:19.6]} 18... Bxg2 {[%clk 0:02:14.4]} 19. Kxg2 {[%clk
0:02:19.9]} 19... Nc2 {[%clk 0:02:15]} 20. Rab1 {[%clk 0:02:12.6]} 20... Nd4
{[%clk 0:02:15.1]} 21. Qe4 {[%clk 0:02:11.5]} 21... Rad8 {[%clk 0:02:08.1]} 22.
Nf3 {[%clk 0:02:09.8]} 22... Nxf3 {[%clk 0:02:04.2]} 23. Kxf3 {[%clk 0:02:06.9]}
23... f6 {[%clk 0:02:00.5]} 24. exf6 {[%clk 0:02:01.2]} 24... Qxf6+ {[%clk
0:02:00.4]} 25. Qf4 {[%clk 0:01:58.9]} 25... Qc3+ {[%clk 0:02:00]} 0-1

[Event "*** Titled Tuesday Blitz"]
[Site "Chess.com"]
[Date "2020.05.05"]
[Round "10"]
[White "awesomevishesh"]
[Black "Jaka_Brilej"]
[Result "1-0"]
[WhiteElo "2477"]
[BlackElo "2372"]
[TimeControl "180+1"]
[EndTime "11:55:17 PDT"]
[Termination "awesomevishesh won by resignation"]

1. d4 {[%clk 0:02:58.7]} 1... f5 {[%clk 0:02:59.6]} 2. Nf3 {[%clk 0:02:57.1]}
2... Nf6 {[%clk 0:02:58.9]} 3. g3 {[%clk 0:02:57]} 3... g6 {[%clk 0:02:59]} 4.
Bg2 {[%clk 0:02:56.9]} 4... Bg7 {[%clk 0:02:59.6]} 5. O-O {[%clk 0:02:56.5]}
5... O-O {[%clk 0:03:00.2]} 6. b3 {[%clk 0:02:55.2]} 6... Ne4 {[%clk 0:02:58.2]}
7. Bb2 {[%clk 0:02:54.6]} 7... d5 {[%clk 0:02:58]} 8. e3 {[%clk 0:02:53.2]} 8...
Be6 {[%clk 0:02:56.4]} 9. Ne1 {[%clk 0:02:47.1]} 9... Nd7 {[%clk 0:02:51.2]} 10.
Nd3 {[%clk 0:02:46.5]} 10... c6 {[%clk 0:02:43.1]} 11. Nd2 {[%clk 0:02:45.2]}
11... a5 {[%clk 0:02:41.7]} 12. a4 {[%clk 0:02:31.1]} 12... Qe8 {[%clk
0:02:41.2]} 13. f3 {[%clk 0:02:13.4]} 13... Nd6 {[%clk 0:02:40.5]} 14. Rc1
{[%clk 0:02:03.6]} 14... Qf7 {[%clk 0:02:40]} 15. Qe2 {[%clk 0:01:59.2]} 15...
Rac8 {[%clk 0:02:25.7]} 16. Ne5 {[%clk 0:01:54.4]} 16... Nxe5 {[%clk 0:02:21.7]}
17. dxe5 {[%clk 0:01:55.3]} 17... Ne8 {[%clk 0:02:21.9]} 18. f4 {[%clk
0:01:47.2]} 18... Nc7 {[%clk 0:02:17.6]} 19. Nf3 {[%clk 0:01:45.5]} 19... Na6
{[%clk 0:02:14.3]} 20. Ng5 {[%clk 0:01:43.2]} 20... Qe8 {[%clk 0:02:05.7]} 21.
Nxe6 {[%clk 0:01:42.4]} 21... Rf7 {[%clk 0:02:06.6]} 22. Nxg7 {[%clk 0:01:34.4]}
22... Rxg7 {[%clk 0:02:07.5]} 23. e6 {[%clk 0:01:34]} 1-0

[Event "*** Titled Tuesday Blitz"]
[Site "Chess.com"]
[Date "2020.05.05"]
[Round "10"]
[White "HanSchut"]
[Black "mamonika"]
[Result "1-0"]
[WhiteElo "2224"]
[BlackElo "1989"]
[TimeControl "180+1"]
[EndTime "11:55:28 PDT"]
[Termination "HanSchut won by resignation"]

1. e4 {[%clk 0:03:00.9]} 1... c5 {[%clk 0:03:00.1]} 2. Nf3 {[%clk 0:03:01.2]}
2... e6 {[%clk 0:02:59.9]} 3. c4 {[%clk 0:03:01.1]} 3... Nc6 {[%clk 0:02:59.4]}
4. Nc3 {[%clk 0:03:01.4]} 4... d6 {[%clk 0:02:54]} 5. d4 {[%clk 0:03:01.1]} 5...
cxd4 {[%clk 0:02:54.4]} 6. Nxd4 {[%clk 0:03:02]} 6... Nf6 {[%clk 0:02:54.5]} 7.
Be3 {[%clk 0:03:01.8]} 7... Ke7 {[%clk 0:02:54.2]} 8. Be2 {[%clk 0:03:01.5]}
8... g6 {[%clk 0:02:44.7]} 9. Qd2 {[%clk 0:02:53.1]} 9... Bg7 {[%clk 0:02:44.7]}
10. O-O {[%clk 0:02:52.7]} 10... Re8 {[%clk 0:02:44.6]} 11. Nxc6+ {[%clk
0:02:45]} 11... bxc6 {[%clk 0:02:44.2]} 12. e5 {[%clk 0:02:44.1]} 12... Ng8
{[%clk 0:02:19.6]} 13. exd6+ {[%clk 0:02:21.1]} 13... Qxd6 {[%clk 0:02:14.2]}
14. Qc2 {[%clk 0:02:08.7]} 14... e5 {[%clk 0:02:01.9]} 15. Ne4 {[%clk
0:02:04.7]} 15... Qe6 {[%clk 0:01:54.6]} 16. Bc5+ {[%clk 0:01:56.1]} 16... Kd8
{[%clk 0:01:53.2]} 17. Rfd1+ {[%clk 0:01:51]} 17... Kc7 {[%clk 0:01:50.8]} 18.
Bd6+ {[%clk 0:01:45.4]} 18... Kb7 {[%clk 0:01:44.4]} 19. Qb3+ {[%clk 0:01:34.2]}
1-0

[Event "*** Titled Tuesday Blitz"]
[Site "Chess.com"]
[Date "2020.05.05"]
[Round "10"]
[White "BabyBoss31"]
[Black "MathiasWomacka"]
[Result "1-0"]
[WhiteElo "2313"]
[BlackElo "2427"]
[TimeControl "180+1"]
[EndTime "11:55:40 PDT"]
[Termination "BabyBoss31 won by resignation"]

1. d4 {[%clk 0:03:00.9]} 1... Nf6 {[%clk 0:02:59.2]} 2. c4 {[%clk 0:03:01.3]}
2... e6 {[%clk 0:02:58.7]} 3. Nf3 {[%clk 0:02:59.6]} 3... Bb4+ {[%clk
0:02:56.8]} 4. Bd2 {[%clk 0:02:59.1]} 4... Qe7 {[%clk 0:02:54.9]} 5. g3 {[%clk
0:02:52.9]} 5... Bxd2+ {[%clk 0:02:54.5]} 6. Qxd2 {[%clk 0:02:50.9]} 6... Nc6
{[%clk 0:02:53.8]} 7. Nc3 {[%clk 0:02:47.1]} 7... d5 {[%clk 0:02:53.7]} 8. cxd5
{[%clk 0:02:44.2]} 8... exd5 {[%clk 0:02:54.6]} 9. Bg2 {[%clk 0:02:42.3]} 9...
Bg4 {[%clk 0:02:52.7]} 10. O-O {[%clk 0:02:38]} 10... O-O-O {[%clk 0:02:52.5]}
11. Rac1 {[%clk 0:02:34.2]} 11... h5 {[%clk 0:02:40.2]} 12. e3 {[%clk
0:02:17.8]} 12... h4 {[%clk 0:02:11.5]} 13. Nxh4 {[%clk 0:02:14.2]} 13... Qe6
{[%clk 0:01:49.3]} 14. Na4 {[%clk 0:01:53.3]} 14... Bh3 {[%clk 0:01:45.5]} 15.
Nc5 {[%clk 0:01:51.4]} 15... Qg4 {[%clk 0:01:44.5]} 16. f3 {[%clk 0:01:49.8]}
16... Qg5 {[%clk 0:01:43.1]} 17. Bxh3+ {[%clk 0:01:48.4]} 17... Kb8 {[%clk
0:01:43.3]} 18. f4 {[%clk 0:01:48.3]} 18... Qh5 {[%clk 0:01:39]} 19. Qd1 {[%clk
0:01:48]} 19... Qh7 {[%clk 0:01:37.5]} 20. Qb3 {[%clk 0:01:46.9]} 20... Na5
{[%clk 0:01:36]} 21. Qb5 {[%clk 0:01:45.1]} 21... b6 {[%clk 0:01:35.9]} 22. Na6+
{[%clk 0:01:44]} 1-0

[Event "*** Titled Tuesday Blitz"]
[Site "Chess.com"]
[Date "2020.05.05"]
[Round "10"]
[White "KaterinaMiroshnik"]
[Black "LivajaM"]
[Result "1-0"]
[WhiteElo "2456"]
[BlackElo "2285"]
[TimeControl "180+1"]
[EndTime "11:55:54 PDT"]
[Termination "KaterinaMiroshnik won by resignation"]

1. d3 {[%clk 0:03:00.7]} 1... Nf6 {[%clk 0:02:55.2]} 2. Nd2 {[%clk 0:03:01.6]}
2... d5 {[%clk 0:02:55.1]} 3. Ngf3 {[%clk 0:03:02.5]} 3... g6 {[%clk 0:02:52.9]}
4. e4 {[%clk 0:03:03.4]} 4... dxe4 {[%clk 0:02:51.4]} 5. dxe4 {[%clk 0:03:04.3]}
5... Bg7 {[%clk 0:02:52.1]} 6. Be2 {[%clk 0:03:05.2]} 6... O-O {[%clk 0:02:52]}
7. O-O {[%clk 0:03:06.1]} 7... c6 {[%clk 0:02:52.4]} 8. c3 {[%clk 0:03:06.4]}
8... Qc7 {[%clk 0:02:52.2]} 9. Qc2 {[%clk 0:03:06.4]} 9... Nbd7 {[%clk
0:02:49.5]} 10. Re1 {[%clk 0:03:06.9]} 10... e5 {[%clk 0:02:48.6]} 11. Nf1
{[%clk 0:03:06.7]} 11... h6 {[%clk 0:02:45.8]} 12. Be3 {[%clk 0:03:06]} 12...
Nh5 {[%clk 0:02:44.5]} 13. Ng3 {[%clk 0:03:04.5]} 13... Nf4 {[%clk 0:02:43.5]}
14. Bf1 {[%clk 0:03:05]} 14... h5 {[%clk 0:02:38.2]} 15. Bxf4 {[%clk 0:03:04]}
15... exf4 {[%clk 0:02:37.9]} 16. Ne2 {[%clk 0:03:04.9]} 16... Ne5 {[%clk
0:02:36.5]} 17. Nxe5 {[%clk 0:03:03.9]} 17... Bxe5 {[%clk 0:02:35.3]} 18. f3
{[%clk 0:03:04.4]} 18... Be6 {[%clk 0:02:34.8]} 19. b3 {[%clk 0:03:01.3]} 19...
Rad8 {[%clk 0:02:33.9]} 20. Rad1 {[%clk 0:03:01.6]} 20... b5 {[%clk 0:02:33.1]}
21. Kh1 {[%clk 0:02:58.7]} 21... h4 {[%clk 0:02:30.2]} 22. Nd4 {[%clk
0:02:57.5]} 22... Bc8 {[%clk 0:02:22.6]} 23. h3 {[%clk 0:02:53.1]} 23... a5
{[%clk 0:02:19.1]} 24. Qf2 {[%clk 0:02:43.7]} 24... g5 {[%clk 0:02:10.6]} 25.
Nf5 {[%clk 0:02:43.2]} 25... Bxc3 {[%clk 0:02:06.8]} 26. Rxd8 {[%clk 0:02:37.8]}
26... Rxd8 {[%clk 0:02:07.7]} 27. Rc1 {[%clk 0:02:34.9]} 27... Bxf5 {[%clk
0:02:02.1]} 28. Rxc3 {[%clk 0:02:32]} 28... Be6 {[%clk 0:01:52]} 29. Rc5 {[%clk
0:02:18.1]} 29... f6 {[%clk 0:01:45]} 30. Bxb5 {[%clk 0:02:13.1]} 30... Rd1+
{[%clk 0:01:44.3]} 31. Kh2 {[%clk 0:02:13]} 31... Qb6 {[%clk 0:01:32.7]} 32.
Rxg5+ {[%clk 0:02:12.6]} 1-0